bitfinex/quotes_BTCUSD_20220211
["timestamp","ask_amount","ask_price","bid_price","bid_amount"]
[1644592824019,0.00069542,43713.0,43711.0,0.63689317]
[1644592824219,0.00069542,43713.0,43712.0,0.322829]
[1644592824419,0.00069542,43713.0,43712.0,0.5873519]
[1644592824618,0.00069542,43713.0,43712.0,0.6873519]
[1644592824817,0.00026002,43717.0,43712.0,0.422829]
[1644592825018,0.00026002,43715.0,43712.0,0.422071]
[1644592825221,0.00069541,43715.0,43712.0,0.322071]
[1644592825818,0.00069541,43715.0,43712.0,0.422071]
[1644592826077,0.00026002,43717.0,43712.0,0.422071]
[1644592826278,0.00069541,43716.0,43712.0,0.479278]
[1644592826777,0.00069541,43716.0,43712.0,0.529278]
[1644592826977,0.00069541,43716.0,43713.0,0.322829]
[1644592827178,0.00026002,43718.0,43714.0,0.26487697]
[1644592827381,0.00069541,43716.0,43715.0,0.32285]
[1644592827579,0.00069541,43716.0,43715.0,0.63047325]
[1644592827780,0.00069541,43716.0,43715.0,0.73047325]
[1644592828179,0.00069541,43716.0,43715.0,0.78767731]
[1644592828380,0.08926935,43718.0,43715.0,0.78767731]
[1644592828579,0.08926935,43718.0,43715.0,0.42285]
[1644592828778,0.08996475,43718.0,43715.0,0.42285]
[1644592829178,0.08996475,43718.0,43715.0,0.47285]
[1644592829379,0.08996475,43718.0,43716.0,0.32285]
[1644592829580,0.08926935,43718.0,43716.0,0.32285]
[1644592829862,0.08926935,43718.0,43717.0,0.32285]
[1644592830264,0.08926935,43718.0,43717.0,0.05]
[1644592830467,0.08926935,43718.0,43717.0,0.37285]
[1644592830666,0.08926935,43718.0,43707.0,0.38006716]
[1644592830963,0.07554746,43717.0,43708.0,0.32285]
[1644592831163,0.07580749,43717.0,43708.0,0.67226056]
[1644592831362,0.00026003,43717.0,43708.0,0.67226056]
[1644592831562,0.07554746,43713.0,43708.0,0.67226056]
[1644592831763,0.057218,43714.0,43708.0,0.72947713]
[1644592831968,0.00026003,43717.0,43709.0,0.32285]
[1644592831969,0.07554746,43717.0,43709.0,0.32285]
[1644592832170,0.011,43729.0,43709.0,0.32285]
[1644592832171,0.00026003,43715.0,43709.0,0.32285]
[1644592832366,0.00026003,43717.0,43716.0,8.465e-05]
[1644592832567,0.00278128,43719.0,43716.0,0.32293465]
[1644592832768,0.00278128,43719.0,43716.0,0.53013565]
[1644592832975,0.31554772,43719.0,43717.0,0.32285]
[1644592833168,0.26236916,43721.0,43717.0,0.37285]
[1644592833368,0.26236916,43721.0,43719.0,0.32285]
[1644592833369,0.00026003,43720.0,43719.0,0.32285]
[1644592833576,0.00026003,43720.0,43716.0,8.465e-05]
[1644592833577,0.07554746,43720.0,43718.0,0.32285]
[1644592833775,0.07580749,43720.0,43717.0,0.32285]
[1644592834078,0.26236916,43721.0,43717.0,0.37285]
[1644592834275,0.62508521,43721.0,43719.0,0.05]
[1644592834475,0.54742748,43721.0,43720.0,0.32285]
[1644592834676,0.54742748,43721.0,43717.0,0.32285]
[1644592834975,0.11468403,43721.0,43720.0,0.37285]
[1644592835175,0.11468403,43721.0,43720.0,0.37228]
[1644592835176,0.07054746,43721.0,43720.0,0.37228]
[1644592836077,0.61548095,43722.0,43720.0,0.37228]
[1644592836277,0.68525174,43722.0,43721.0,0.32285]
[1644592836680,0.73525174,43722.0,43716.0,8.465e-05]
[1644592836881,0.61548095,43722.0,43717.0,0.32285]
[1644592837233,0.06977079,43718.0,43717.0,0.32285]
[1644592837625,0.00026003,43721.0,43717.0,0.32285]
[1644592837826,0.00026003,43721.0,43717.0,0.37285]
[1644592838025,0.07003082,43721.0,43718.0,0.32285]
[1644592838228,0.07003082,43721.0,43719.0,0.37285]
[1644592838229,0.065226,43721.0,43719.0,0.37285]
[1644592838425,0.00071524,43721.0,43720.0,0.32285]
[1644592838626,0.00045521,43721.0,43720.0,0.37285]
[1644592838825,0.32278454,43722.0,43721.0,0.32285]
[1644592839026,0.38301054,43722.0,43721.0,0.32285]
[1644592840326,0.32278454,43722.0,43721.0,0.32285]
[1644592840829,0.62216786,43722.0,43721.0,0.32285]
[1644592842478,0.67216786,43722.0,43716.0,8.465e-05]
[1644592842678,0.12673761,43717.0,43716.0,8.465e-05]
[1644592842878,0.23919061,43717.0,43716.0,8.465e-05]
[1644592843677,0.18919061,43717.0,43716.0,8.465e-05]
[1644592844179,0.23919061,43717.0,43716.0,8.465e-05]
[1644592846521,0.162453,43717.0,43716.0,8.465e-05]
[1644592847322,0.212453,43717.0,43716.0,8.465e-05]
[1644592848122,0.2916026,43717.0,43716.0,8.465e-05]
[1644592848325,0.60334958,43717.0,43716.0,8.465e-05]
[1644592848571,0.2916026,43717.0,43716.0,8.465e-05]
[1644592851072,0.60264205,43717.0,43716.0,8.465e-05]
[1644592851872,0.2916026,43717.0,43716.0,8.465e-05]
[1644592852224,0.212453,43717.0,43716.0,8.465e-05]
[1644592852421,0.21219348,43717.0,43716.0,8.465e-05]
[1644592852721,0.16219348,43717.0,43716.0,8.465e-05]
[1644592856376,0.10496648,43717.0,43716.0,8.465e-05]
[1644592856575,0.05496648,43717.0,43716.0,8.465e-05]
[1644592856780,0.10496648,43717.0,43716.0,8.465e-05]
[1644592856978,0.05496648,43717.0,43716.0,8.465e-05]
[1644592857178,0.057224,43718.0,43716.0,0.58384138]
[1644592857380,0.057206,43720.0,43716.0,0.32293465]
[1644592857579,0.00026003,43719.0,43716.0,0.43734551]
[1644592857777,0.00026003,43720.0,43718.0,0.32285]
[1644592857978,0.00026003,43722.0,43716.0,0.16449551]
[1644592858177,0.000955,43723.0,43718.0,0.38001722]
[1644592858377,0.00026003,43722.0,43720.0,0.322808]
[1644592858579,0.00026003,43723.0,43720.0,0.322808]
[1644592858779,0.05721,43721.0,43720.0,0.372808]
[1644592860022,0.05721,43721.0,43720.0,0.10720854]
[1644592860220,0.05721,43721.0,43720.0,0.70078059]
[1644592860422,0.11537604,43723.0,43721.0,0.322808]
[1644592860423,0.00069501,43723.0,43721.0,0.322808]
[1644592860624,0.00069501,43723.0,43722.0,0.357195]
[1644592860821,0.011,43729.0,43722.0,0.830003]
[1644592860822,0.00026003,43725.0,43722.0,0.830003]
[1644592861021,0.011,43729.0,43723.0,0.379997]
[1644592861022,0.00026003,43726.0,43723.0,0.379997]
[1644592861222,0.00026003,43728.0,43724.0,0.372808]
[1644592861421,0.011,43729.0,43726.0,0.322808]
[1644592861624,0.05522651,43728.0,43726.0,0.380002]
[1644592861827,0.05496648,43728.0,43726.0,0.43000036]
[1644592862026,0.05496648,43728.0,43726.0,0.372808]
[1644592862223,0.10496648,43728.0,43726.0,0.372808]
[1644592862623,0.29159308,43727.0,43726.0,0.372808]
[1644592862823,0.10496648,43728.0,43726.0,0.322808]
[1644592863023,0.10496648,43728.0,43727.0,0.322808]
[1644592863024,0.05,43728.0,43727.0,0.322808]
[1644592863225,0.17316748,43729.0,43728.0,0.322808]
[1644592863670,0.1738485,43729.0,43728.0,0.322808]
[1644592863872,0.06168102,43729.0,43728.0,0.322808]
[1644592864073,0.01168102,43729.0,43728.0,0.322808]
[1644592864577,0.011,43729.0,43728.0,0.322808]
[1644592865973,0.011,43729.0,43728.0,0.58487965]
[1644592866372,0.3632662,43729.0,43728.0,0.322808]
[1644592866572,0.011,43729.0,43728.0,0.322808]
[1644592867734,0.06596648,43729.0,43728.0,0.322808]
[1644592867933,0.011,43729.0,43717.0,0.3]
[1644592868134,0.05496648,43720.0,43719.0,8.648e-05]
[1644592868332,0.07338748,43720.0,43719.0,8.648e-05]
[1644592868532,0.05496648,43720.0,43719.0,8.648e-05]
[1644592868732,0.22155022,43724.0,43719.0,8.648e-05]
[1644592868932,0.05496648,43722.0,43719.0,8.648e-05]
[1644592869232,0.22155022,43724.0,43719.0,8.648e-05]
[1644592869233,0.05496648,43720.0,43719.0,8.648e-05]
[1644592869633,0.10496648,43720.0,43719.0,8.648e-05]
[1644592870233,0.12338748,43720.0,43719.0,8.648e-05]
[1644592870633,0.10496648,43720.0,43719.0,8.648e-05]
[1644592871272,0.14706648,43720.0,43719.0,8.648e-05]
[1644592877026,0.14206648,43720.0,43719.0,8.648e-05]
[1644592877326,0.14206648,43720.0,43716.0,8.465e-05]
[1644592877327,0.05723,43718.0,43716.0,8.465e-05]
[1644592877525,0.14929604,43717.0,43716.0,8.465e-05]
[1644592877727,0.14206648,43717.0,43716.0,8.465e-05]
[1644592878126,0.44728272,43717.0,43716.0,8.465e-05]
[1644592878482,0.09206648,43717.0,43716.0,8.465e-05]
[1644592878882,0.09206648,43717.0,43716.0,0.32289265]
[1644592878883,0.04996648,43717.0,43716.0,0.32289265]
[1644592879084,0.04996648,43717.0,43716.0,0.05008465]
[1644592879384,0.04996648,43717.0,43716.0,8.465e-05]
[1644592879584,0.16441848,43717.0,43716.0,8.465e-05]
[1644592879787,0.04996648,43717.0,43716.0,8.465e-05]
[1644592880185,0.36420402,43717.0,43716.0,8.465e-05]
[1644592880390,0.14996648,43717.0,43716.0,8.465e-05]
[1644592880587,0.36442157,43717.0,43716.0,8.465e-05]
[1644592880788,1.07524868,43717.0,43716.0,4.65e-06]
[1644592880990,1.09366968,43717.0,43716.0,4.65e-06]
[1644592881190,1.09366968,43717.0,43710.0,0.00061932]
[1644592881191,0.114498,43716.0,43710.0,0.00061932]
[1644592881389,0.057248,43710.0,43693.0,0.28534106]
[1644592881588,0.04996648,43695.0,43687.0,0.40765419]
[1644592881789,0.40747526,43697.0,43696.0,0.08151195]
[1644592881988,0.33608823,43697.0,43696.0,0.08151195]
[1644592882233,0.33608823,43697.0,43696.0,0.13151195]
[1644592883024,0.33608823,43697.0,43696.0,0.08151195]
[1644592883221,0.40715763,43697.0,43696.0,0.08151195]
[1644592883423,0.69983402,43697.0,43696.0,0.08151195]
[1644592883622,0.40715763,43697.0,43696.0,0.08151195]
[1644592884427,0.88002919,43697.0,43696.0,0.08151195]
[1644592884624,0.88002919,43697.0,43694.0,0.00066706]
[1644592884625,1.10726,43696.0,43694.0,0.00066706]
[1644592884823,0.50606515,43695.0,43694.0,0.00066706]
[1644592885023,0.50606515,43695.0,43679.0,0.13623]
[1644592885225,0.86597872,43695.0,43694.0,0.00066706]
[1644592885424,0.86597872,43695.0,43681.0,0.3447681]
[1644592885425,0.28498684,43689.0,43681.0,0.3447681]
[1644592885629,0.0458,43692.0,43681.0,0.3447681]
[1644592886073,0.057255,43687.0,43681.0,0.3447681]
[1644592886273,0.057255,43687.0,43679.0,0.13623]
[1644592886575,0.0458,43686.0,43679.0,0.18623]
[1644592887375,0.057258,43685.0,43679.0,0.52668844]
[1644592887877,0.05,43698.0,43685.0,0.322996]
[1644592888074,0.3819,43706.0,43686.0,0.3]
[1644592888276,0.057241,43702.0,43685.0,0.107242]
[1644592888474,0.29965252,43694.0,43688.0,0.05724126]
[1644592888677,0.114485,43704.0,43686.0,0.3]
[1644592888678,0.33294378,43690.0,43686.0,0.35]
[1644592889074,0.33294378,43690.0,43680.0,0.174]
[1644592889075,0.33294378,43690.0,43683.0,0.05]
[1644592889375,0.05,43701.0,43684.0,0.3]
[1644592889576,0.057242,43693.0,43688.0,0.322996]
[1644592889828,0.057242,43693.0,43690.0,0.322996]
[1644592890028,0.057242,43693.0,43690.0,0.32364652]
[1644592890230,0.057242,43693.0,43690.0,0.00065052]
[1644592890429,0.057242,43693.0,43691.0,0.322996]
[1644592890430,0.36097355,43692.0,43691.0,0.322996]
[1644592890627,0.41097355,43692.0,43691.0,0.372996]
[1644592890830,0.05,43692.0,43691.0,0.05]
[1644592891830,0.05,43692.0,43690.0,0.322996]
[1644592892030,0.107243,43692.0,43690.0,0.322996]
[1644592892230,0.107243,43692.0,43690.0,0.372996]
[1644592892628,0.107243,43692.0,43690.0,0.322996]
[1644592892835,0.107243,43692.0,43691.0,0.26680584]
[1644592893032,0.05,43692.0,43691.0,0.26680584]
[1644592894073,0.05,43692.0,43690.0,0.472996]
[1644592894273,0.05,43692.0,43690.0,0.372996]
[1644592894874,0.05,43692.0,43690.0,0.472996]
[1644592895774,0.05,43692.0,43691.0,0.26523112]
[1644592896474,0.05,43692.0,43690.0,0.530232]
[1644592898627,0.05,43692.0,43691.0,0.05]
[1644592898822,0.05,43692.0,43691.0,0.3144694]
[1644592899023,0.05,43692.0,43691.0,0.3094694]
[1644592899224,0.05,43692.0,43691.0,0.3644694]
[1644592899625,0.05,43692.0,43691.0,0.1]
[1644592900224,0.05,43692.0,43690.0,0.430232]
[1644592900427,0.05,43692.0,43690.0,0.372996]
[1644592900827,0.05,43692.0,43690.0,0.322996]
[1644592901073,0.05,43692.0,43690.0,0.372996]
[1644592901473,0.05,43692.0,43690.0,0.322996]
[1644592902574,0.05,43692.0,43691.0,0.26328926]
[1644592902774,0.05,43692.0,43691.0,0.63628526]
[1644592902975,0.05,43692.0,43691.0,0.31328926]
[1644592904926,0.05,43692.0,43691.0,0.63628526]
[1644592905127,0.05,43692.0,43691.0,0.31328926]
[1644592905327,0.114459,43698.0,43691.0,0.41328926]
[1644592905528,0.114448,43702.0,43697.0,0.045]
[1644592905728,0.00260516,43707.0,43698.0,0.62057105]
[1644592905927,0.00325643,43712.0,43698.0,0.62057105]
[1644592906228,0.057221,43703.0,43700.0,0.372996]
[1644592906530,0.057221,43703.0,43698.0,0.34757505]
[1644592906531,0.12559173,43703.0,43702.0,0.322996]
[1644592906725,0.12559173,43703.0,43700.0,0.322996]
[1644592907127,0.12559173,43703.0,43700.0,0.372996]
[1644592907329,0.12559173,43703.0,43702.0,0.322996]
[1644592907528,0.42598865,43703.0,43702.0,0.322996]
[1644592907729,0.36876765,43703.0,43702.0,0.372996]
[1644592909283,0.36876765,43703.0,43701.0,0.322996]
[1644592909476,0.36876765,43703.0,43700.0,0.00069485]
[1644592909477,0.057233,43702.0,43700.0,0.00069485]
[1644592909678,1.114474,43702.0,43692.0,0.398]
[1644592909879,0.00325643,43697.0,43692.0,0.398]
[1644592910079,0.33337167,43696.0,43692.0,0.398]
[1644592910278,0.30952922,43693.0,43692.0,0.398]
[1644592910678,0.057246,43691.0,43683.0,0.64301331]
[1644592910880,0.057246,43691.0,43684.0,0.322996]
[1644592911678,0.057246,43691.0,43686.0,0.322996]
[1644592911881,0.05,43691.0,43686.0,0.322996]
[1644592912332,0.05,43691.0,43688.0,0.322996]
[1644592912534,0.057244,43690.0,43686.0,0.322996]
[1644592912730,0.057244,43690.0,43686.0,0.372996]
[1644592913030,0.057245,43690.0,43688.0,0.322996]
[1644592913230,0.057245,43690.0,43688.0,0.372996]
[1644592914931,0.057245,43690.0,43688.0,0.322996]
[1644592915332,0.057245,43690.0,43688.0,0.372996]
[1644592918481,0.05,43691.0,43688.0,0.372996]
[1644592918681,0.05,43691.0,43689.0,0.322996]
[1644592919080,0.05,43691.0,43690.0,0.28413052]
[1644592919280,0.05,43691.0,43690.0,0.33413052]
[1644592919921,0.05,43691.0,43690.0,0.65712652]
[1644592920723,0.05,43691.0,43690.0,0.33413052]
[1644592920926,0.05,43691.0,43690.0,0.43413052]
[1644592921726,0.05,43691.0,43690.0,0.75712652]
[1644592921923,0.05,43691.0,43690.0,0.43413052]
[1644592922331,0.05,43691.0,43690.0,0.33413052]
[1644592922526,0.13043591,43691.0,43689.0,0.38023317]
[1644592922727,0.13043591,43691.0,43688.0,0.00069491]
[1644592922926,0.18768391,43691.0,43689.0,0.322996]
[1644592923126,0.05,43691.0,43689.0,0.322996]
[1644592923588,0.33544687,43690.0,43679.0,0.19353837]
[1644592923786,0.06051543,43683.0,43679.0,0.19353837]
[1644592923986,0.1,43683.0,43676.0,0.56463837]
[1644592924185,0.1,43683.0,43676.0,0.19353837]
[1644592924384,0.1,43683.0,43674.0,0.3856]
[1644592924385,0.1,43683.0,43677.0,0.322996]
[1644592924584,0.1,43683.0,43677.0,0.61871974]
[1644592924987,0.1,43683.0,43678.0,0.322996]
[1644592925586,0.15726,43683.0,43678.0,0.322996]
[1644592925988,0.53173556,43683.0,43678.0,0.38025333]
[1644592926185,0.53173556,43683.0,43679.0,0.322996]
[1644592926686,0.53173556,43683.0,43679.0,0.372996]
[1644592926888,0.15726,43683.0,43681.0,0.322996]
[1644592927089,0.33627,43691.0,43681.0,0.322996]
[1644592927090,0.114493,43688.0,43681.0,0.322996]
[1644592927326,0.114493,43688.0,43681.0,0.472996]
[1644592927530,0.114493,43688.0,43682.0,0.322996]
[1644592927728,0.05,43691.0,43682.0,0.322996]
[1644592927925,0.32698935,43691.0,43683.0,0.33772751]
[1644592928125,0.32698935,43691.0,43684.0,0.380239]
[1644592928325,0.32698935,43691.0,43684.0,0.43748225]
[1644592928326,0.107244,43691.0,43684.0,0.43748225]
[1644592928528,0.057244,43687.0,43685.0,0.32369006]
[1644592928728,0.057244,43687.0,43685.0,0.37369006]
[1644592929527,0.057244,43687.0,43685.0,0.372996]
[1644592930329,0.057244,43687.0,43685.0,0.48747788]
[1644592933174,0.057244,43687.0,43686.0,0.322996]
[1644592933375,0.057244,43687.0,43686.0,0.372996]
[1644592934925,0.05,43688.0,43686.0,0.472996]
[1644592935124,0.05,43688.0,43687.0,0.322996]
[1644592935326,0.05,43688.0,43687.0,0.422996]
[1644592935523,0.37717999,43694.0,43688.0,0.057234]
[1644592935726,0.114473,43694.0,43689.0,0.372996]
[1644592935924,0.114473,43694.0,43690.0,0.38023013]
[1644592936126,0.057235,43693.0,43691.0,0.322996]
[1644592936325,0.11772943,43694.0,43692.0,0.322996]
[1644592936523,0.00325643,43694.0,43693.0,0.322996]
[1644592936724,0.00325643,43694.0,43685.0,0.0958]
[1644592936924,0.34759663,43687.0,43685.0,0.04988817]
[1644592937126,0.34759663,43687.0,43679.0,0.40221396]
[1644592937127,0.06050443,43686.0,43679.0,0.23933837]
[1644592937334,0.06050443,43686.0,43675.0,0.19353837]
[1644592937335,0.00325643,43680.0,43675.0,0.19353837]
[1644592937526,0.08397725,43685.0,43674.0,0.3856]
[1644592937724,0.00325643,43678.0,43674.0,0.3856]
[1644592937931,0.00325643,43675.0,43671.0,0.0111]
[1644592938127,0.00325643,43672.0,43671.0,0.0111]
[1644592938979,0.157272,43673.0,43671.0,0.0111]
[1644592939178,0.10325643,43673.0,43672.0,0.322996]
[1644592939678,0.10325643,43673.0,43671.0,0.0111]
[1644592940077,0.10325643,43673.0,43672.0,0.322996]
[1644592940277,0.10325643,43673.0,43671.0,0.0111]
[1644592940278,0.1,43673.0,43671.0,0.0111]
[1644592940484,0.1,43673.0,43672.0,0.322996]
[1644592941278,0.1,43673.0,43672.0,0.372996]
[1644592941878,0.7167618,43676.0,43672.0,0.05]
[1644592941879,0.23342551,43676.0,43672.0,0.05]
[1644592942078,0.00325643,43673.0,43671.0,0.01130727]
[1644592942328,0.00325643,43673.0,43671.0,0.0111]
[1644592943330,1.08958618,43672.0,43669.0,0.00090031]
[1644592943531,0.05,43671.0,43670.0,0.00020926]
[1644592943730,0.09905643,43671.0,43669.0,0.00110957]
[1644592943932,0.09905643,43671.0,43669.0,0.00090031]
[1644592944330,0.09905643,43671.0,43661.0,0.01]
[1644592944331,0.38549915,43671.0,43661.0,0.01]
[1644592944529,0.05325643,43668.0,43661.0,0.01]
[1644592944732,0.08201665,43662.0,43661.0,0.01]
[1644592945130,0.35519229,43662.0,43661.0,0.01]
[1644592945333,0.77524031,43662.0,43661.0,0.01]
[1644592945531,1.06976936,43662.0,43661.0,0.01]
[1644592946181,1.27920364,43661.0,43652.0,0.0011]
[1644592946383,0.00325643,43654.0,43652.0,0.0011]
[1644592946980,0.27056404,43654.0,43651.0,0.0078]
[1644592947180,0.05,43652.0,43651.0,0.0078]
[1644592947378,0.0958,43652.0,43651.0,0.0078]
[1644592947581,0.0958,43652.0,43649.0,0.0011]
[1644592947582,1.05,43651.0,43649.0,0.0011]
[1644592947779,1.257314,43651.0,43649.0,0.0017914]
[1644592947981,1.05,43649.0,43646.0,0.0011]
[1644592948183,0.11871296,43648.0,43645.0,0.0011]
[1644592948382,0.34005293,43647.0,43644.0,0.0005]
[1644592948580,0.00325643,43645.0,43644.0,0.0005]
[1644592948979,0.19629572,43645.0,43644.0,0.0005]
[1644592950029,1.05,43644.0,43643.0,0.0005]
[1644592950234,1.41010702,43644.0,43643.0,0.0005]
[1644592950431,0.05,43645.0,43643.0,0.323496]
[1644592950634,0.87125801,43646.0,43643.0,0.373496]
[1644592950635,0.0458,43644.0,43643.0,0.373496]
[1644592950833,0.00325643,43645.0,43644.0,0.11502745]
[1644592951036,0.00325643,43645.0,43644.0,0.43802345]
[1644592951433,0.00325643,43645.0,43644.0,0.11502745]
[1644592951635,0.06944579,43645.0,43644.0,0.43802345]
[1644592951831,0.06944579,43645.0,43644.0,0.11502745]
[1644592952041,0.11944579,43645.0,43644.0,0.43802345]
[1644592952232,0.11944579,43645.0,43644.0,0.11502745]
[1644592952433,0.11944579,43645.0,43644.0,0.43802345]
[1644592952631,0.11944579,43645.0,43644.0,0.11502745]
[1644592952831,0.11944579,43645.0,43644.0,0.43802345]
[1644592953332,0.05325643,43645.0,43644.0,0.43802345]
[1644592953884,0.05,43645.0,43644.0,0.43802345]
[1644592954084,0.82125801,43646.0,43644.0,0.43802345]
[1644592954283,0.82125801,43646.0,43645.0,0.61492173]
[1644592954481,0.82125801,43646.0,43645.0,0.322996]
[1644592956186,0.81625801,43646.0,43645.0,0.322996]
[1644592956984,0.86625801,43646.0,43645.0,0.322996]
[1644592958225,0.86625801,43646.0,43645.0,0.58630998]
[1644592958426,0.86625801,43646.0,43645.0,0.322996]
[1644592958830,0.522317,43646.0,43645.0,0.69234452]
[1644592959030,0.05,43646.0,43645.0,0.69234452]
[1644592959228,0.42,43655.0,43645.0,0.69234452]
[1644592959528,0.42,43655.0,43645.0,0.69255387]
[1644592959727,0.05,43654.0,43647.0,0.00065379]
[1644592959928,0.34059876,43651.0,43648.0,0.322996]
[1644592960128,0.34059876,43651.0,43649.0,0.322996]
[1644592960329,0.39059876,43651.0,43650.0,0.322996]
[1644592960528,0.39059876,43651.0,43649.0,0.322996]
[1644592960728,0.39059876,43651.0,43648.0,0.00020935]
[1644592960984,0.39059876,43651.0,43649.0,0.322996]
[1644592961391,0.39059876,43651.0,43649.0,0.372996]
[1644592961588,0.39059876,43651.0,43649.0,0.322996]
[1644592961787,0.39059876,43651.0,43648.0,0.32320535]
[1644592961989,0.39059876,43651.0,43647.0,0.322996]
[1644592962192,0.00325643,43648.0,43647.0,0.0006549]
[1644592962390,0.07068578,43648.0,43647.0,0.0006549]
[1644592962589,0.47404621,43648.0,43647.0,0.0006549]
[1644592962789,0.39105464,43648.0,43647.0,0.0006549]
[1644592962989,0.12799878,43648.0,43647.0,0.0006549]
[1644592963188,0.12799878,43648.0,43646.0,0.00020935]
[1644592963389,0.05,43647.0,43645.0,0.00086425]
[1644592963690,0.107314,43647.0,43646.0,0.322996]
[1644592963892,0.107314,43647.0,43646.0,0.372996]
[1644592964089,0.44840519,43647.0,43646.0,0.372996]
[1644592964290,0.107314,43647.0,43646.0,0.322996]
[1644592964588,0.107314,43647.0,43646.0,0.372996]
[1644592964825,0.107314,43647.0,43646.0,0.05]
[1644592965027,0.107314,43647.0,43645.0,0.00020935]
[1644592965225,0.107314,43647.0,43646.0,0.372996]
[1644592965826,0.107314,43647.0,43646.0,0.322996]
[1644592966828,0.107314,43647.0,43646.0,0.372996]
[1644592967025,0.107314,43647.0,43646.0,0.05]
[1644592967228,0.107314,43647.0,43646.0,0.372996]
[1644592967427,0.107314,43647.0,43646.0,0.05]
[1644592967629,0.657314,43647.0,43644.0,0.11568227]
[1644592967830,0.05325643,43645.0,43644.0,0.10568227]
[1644592968031,1.12710925,43644.0,43641.0,0.0111]
[1644592968233,0.00325643,43642.0,43641.0,0.0111]
[1644592968479,0.50607824,43642.0,43641.0,0.0111]
[1644592968679,0.76089705,43642.0,43641.0,0.0111]
[1644592968879,0.43997724,43642.0,43641.0,0.0111]
[1644592969882,0.68935918,43642.0,43641.0,0.0111]
[1644592970483,0.68935918,43642.0,43641.0,0.33443]
[1644592970484,0.43997724,43642.0,43641.0,0.33443]
[1644592970683,0.43997724,43642.0,43641.0,0.0111]
[1644592971885,0.03215822,43644.0,43641.0,0.0111]
[1644592972236,0.03215822,43644.0,43642.0,0.32333]
[1644592972431,0.057307,43650.0,43643.0,0.59062848]
[1644592972628,0.42,43655.0,43643.0,0.64062848]
[1644592972831,0.42,43655.0,43645.0,0.32333]
[1644592973029,0.42,43655.0,43643.0,0.31729848]
[1644592973228,0.00068943,43649.0,43648.0,0.32054219]
[1644592973629,0.00068943,43649.0,43648.0,0.37054219]
[1644592973831,0.00068943,43649.0,43648.0,0.69387219]
[1644592974032,0.4826,43666.0,43648.0,0.99387219]
[1644592974033,0.1241,43666.0,43648.0,0.99387219]
[1644592974236,0.1241,43666.0,43650.0,0.32333]
[1644592974532,0.05,43673.0,43652.0,0.32333]
[1644592974731,0.23000012,43670.0,43660.0,0.36010201]
[1644592974930,0.0668726,43664.0,43661.0,0.32333]
[1644592975132,0.0668726,43664.0,43661.0,0.37333]
[1644592975331,0.34456612,43670.0,43663.0,0.32333]
[1644592975534,0.1,43678.0,43663.0,0.32333]
[1644592975535,0.00068934,43667.0,43663.0,0.32333]
[1644592975733,0.00068934,43667.0,43663.0,0.37333]
[1644592975980,0.00068934,43667.0,43664.0,0.32333]
[1644592976379,0.08787548,43674.0,43664.0,0.32333]
[1644592976577,0.057275,43673.0,43663.0,0.05]
[1644592976781,0.082511,43667.0,43663.0,0.05]
[1644592976978,0.082511,43667.0,43661.0,0.8994]
[1644592977180,0.116101,43666.0,43661.0,0.4294]
[1644592977379,0.116101,43666.0,43653.0,0.42]
[1644592977579,0.36060996,43664.0,43655.0,0.30327327]
[1644592977878,0.05,43663.0,43655.0,0.30327327]
[1644592978080,0.07042528,43660.0,43655.0,0.30327327]
[1644592978280,0.12042528,43660.0,43655.0,0.30327327]
[1644592978882,0.12042528,43660.0,43655.0,0.35327327]
[1644592979080,0.12042528,43660.0,43657.0,0.32333]
[1644592979081,0.05045468,43660.0,43657.0,0.32333]
[1644592979382,0.00045468,43660.0,43657.0,0.32333]
[1644592979577,0.00045468,43660.0,43658.0,0.32333]
[1644592979830,0.00045468,43660.0,43659.0,0.32333]
[1644592980028,0.05,43663.0,43658.0,0.05]
[1644592980234,0.114567,43673.0,43657.0,0.32333]
[1644592980429,0.3241206,43676.0,43658.0,0.32333]
[1644592980430,0.00068973,43661.0,43658.0,0.32333]
[1644592980630,0.00068973,43661.0,43655.0,0.45327327]
[1644592980829,0.00068973,43661.0,43660.0,0.430603]
[1644592981031,0.05,43678.0,43664.0,0.32333]
[1644592981233,0.00275717,43689.0,43674.0,0.32333]
[1644592981434,0.22933122,43693.0,43674.0,0.42333]
[1644592981633,0.05,43694.0,43682.0,0.05]
[1644592981936,0.31155049,43696.0,43685.0,0.36212093]
[1644592982129,0.31155049,43696.0,43685.0,0.41212093]
[1644592982328,0.31155049,43696.0,43685.0,0.05]
[1644592982329,0.08252502,43686.0,43685.0,0.05]
[1644592982531,0.19862602,43686.0,43675.0,0.1597]
[1644592982733,0.08252502,43686.0,43676.0,0.05]
[1644592982931,0.2,43698.0,43676.0,0.05]
[1644592982932,0.3918259,43695.0,43677.0,0.36913]
[1644592983133,0.05,43695.0,43680.0,0.32333]
[1644592983332,0.05,43695.0,43680.0,0.62333]
[1644592983575,0.05,43695.0,43680.0,0.44398461]
[1644592983776,0.05,43695.0,43686.0,0.05]
[1644592983981,0.07376788,43699.0,43692.0,0.323048]
[1644592984176,0.01,43699.0,43692.0,0.323048]
[1644592984375,0.01,43699.0,43692.0,0.623048]
[1644592984587,0.01,43699.0,43695.0,0.373048]
[1644592984775,0.01,43699.0,43695.0,0.473048]
[1644592984974,0.33743842,43696.0,43695.0,0.423048]
[1644592985177,0.01,43699.0,43695.0,0.373048]
[1644592985376,0.01068969,43699.0,43696.0,0.323048]
[1644592986178,0.31312754,43697.0,43696.0,0.323048]
[1644592986576,0.01,43699.0,43696.0,0.323048]
[1644592987433,0.01,43699.0,43698.0,0.323048]
[1644592987832,0.01,43699.0,43698.0,0.373048]
[1644592988633,0.01,43699.0,43698.0,0.7577752]
[1644592988832,0.005,43699.0,43698.0,0.7577752]
[1644592989233,0.005,43699.0,43698.0,0.373048]
[1644592995829,0.005,43699.0,43685.0,0.28807735]
[1644592996029,0.005,43699.0,43686.0,0.05724067]
[1644592996628,0.32389065,43694.0,43684.0,0.3632]
[1644592996829,0.20107303,43693.0,43687.0,0.70521619]
[1644592997030,0.32389065,43694.0,43689.0,0.323048]
[1644592997031,0.37389065,43694.0,43689.0,0.323048]
[1644592997428,0.00069007,43693.0,43689.0,0.323048]